[Event "September Lviv Tradition 2019"]
[Site "Lviv"]
[Date "2019.09.26"]
[Round "7.5"]
[White "Prydun, Andriy"]
[Black "Gavrish, Leonid"]
[Result "0-1"]
[ECO "A58"]
[WhiteElo "2273"]
[BlackElo "2022"]
[Annotator "NA"]
[PlyCount "130"]
[EventDate "2019.09.23"]
[EventType "tourn"]
[EventCountry "UKR"]
[SourceTitle "playchess.com"]
[Source "ChessBase"]
[SourceQuality "1"]
[TimeControl "5400+30"]

1. d4 {[%emt 0:00:00]} Nf6 {[%emt 0:04:24]} 2. c4 {[%emt 0:00:00]} c5 {[%emt 0:00:21]} 3. d5 {[%emt 0:00:00]} b5 {[%emt 0:00:06]} 4. cxb5 {[%emt 0:00:00]} a6 {[%emt 0:00:04]} 5. bxa6 {[%emt 0:00:00]} g6 {[%emt 0:00:06]} 6. Nf3 {[%emt 0:00:00]} Bg7 {[%emt 0:00:08]} 7. g3 {[%emt 0:00:00]} d6 {[%emt 0:00:36]} 8. Bg2 {[%emt 0:00:00]} O-O {[%emt 0:01:39]} 9. O-O {[%emt 0:00:04]} Nxa6 {[%emt 0:01:19]} 10. Nc3 {[%emt 0:00:13]} Bf5 {[%emt 0:00:21]} 11. Ne1 {[%emt 0:01:20]} Qb6 {[%emt 0:01:18]} 12. e4 {[%emt 0:01:36]} Bg4 {[%emt 0:00:39]} 13. f3 {[%emt 0:00:26]} Bd7 {[%emt 0:01:34]} 14. Rb1 {[%emt 0:01:25]} Ne8 {[%emt 0:01:53]} 15. Bd2 {[%emt 0:01:46]} Nec7 {[%emt 0:02:42]} 16. Nc2 {[%emt 0:00:24]} Rfb8 {[%emt 0:09:38]} 17. a3 {[%emt 0:01:04]} Nb5 {[%emt 0:01:43]} 18. Ne2 {[%emt 0:00:19]} Nd4 {[%emt 0:07:16]} 19. Ncxd4 {[%emt 0:07:26]} cxd4 {[%emt 0:03:47]} 20. Kh1 {[%emt 0:00:02]} Nc5 {[%emt 0:02:22]} 21. b4 {[%emt 0:10:16]} Nd3 {[%emt 0:13:31]} 22. Nc1 {[%emt 0:29:17]} Rxa3 {[%emt 0:03:51]} 23. Nxd3 {[%emt 0:00:22]} Rxd3 {[%emt 0:00:10]} 24. Qc2 {[%emt 0:00:06]} Ra3 {[%emt 0:05:13]} 25. Rfc1 {[%emt 0:00:09]} f5 {[%emt 0:03:16]} 26. Qc7 {[%emt 0:08:23]} Ra7 {[%emt 0:03:58]} 27. Qxb6 {[%emt 0:00:02]} Rxb6 {[%emt 0:00:09]} 28. Ra1 {[%emt 0:03:40]} Rbb7 {[%emt 0:00:54]} 29. Ra5 {[%emt 0:01:48]} Rxa5 {[%emt 0:05:26]} 30. bxa5 {[%emt 0:00:05]} Rb2 {[%emt 0:00:12]} 31. Bg5 {[%emt 0:02:27]} d3 {[%emt 0:03:34]} 32. Bf1 {[%emt 0:03:36]} d2 {[%emt 0:00:45]} 33. Rd1 {[%emt 0:00:06]} Bc3 {[%emt 0:05:20]} 34. a6 {[%emt 0:01:51]} fxe4 {[%emt 0:01:08]} 35. Bc4 {[%emt 0:19:47]} Bd4 {[%emt 0:06:00]} 36. Bxd2 {[%emt 0:08:46]} Ba4 {[%emt 0:01:57]} 37. Bc3 {[%emt 0:00:01]} Bxc3 {[%emt 0:06:13]} 38. Ra1 {[%emt 0:00:30]} Bd4 {[%emt 0:02:20]} 39. Rxa4 {[%emt 0:00:40]} exf3 {[%emt 0:01:19]} 40. Ra1 {[%emt 0:01:26]} Rb4 {[%emt 0:00:20]} 41. Rc1 {[%emt 0:00:33]} Be3 {[%emt 0:00:48]} 42. a7 {[%emt 0:00:14]} Bxa7 {[%emt 0:00:11]} 43. Ba6 {[%emt 0:00:22]} Be3 {[%emt 0:01:03]} 44. Rf1 {[%emt 0:00:03]} f2 {[%emt 0:00:23]} 45. Be2 {[%emt 0:01:00]} Kf7 {[%emt 0:00:31]} 46. Kg2 {[%emt 0:00:30]} e6 {[%emt 0:00:13]} 47. dxe6+ {[%emt 0:00:05]} Kxe6 {[%emt 0:00:07]} 48. Ra1 {[%emt 0:00:22]} d5 {[%emt 0:00:47]} 49. Kf3 {[%emt 0:00:41]} Bc5 {[%emt 0:00:19]} 50. Rc1 {[%emt 0:00:45]} Rb3+ {[%emt 0:00:31]} 51. Kg2 {[%emt 0:00:06]} Kd6 {[%emt 0:01:00]} 52. Rd1 {[%emt 0:00:04]} Ke5 {[%emt 0:01:17]} 53. Bf3 {[%emt 0:00:06]} Bd4 {[%emt 0:00:27]} 54. Rf1 {[%emt 0:02:11]} Be3 {[%emt 0:00:24]} 55. Rd1 {[%emt 0:00:18]} d4 {[%emt 0:00:12]} 56. Be2 {[%emt 0:00:02]} Rb2 {[%emt 0:00:21]} 57. Bf1 {[%emt 0:00:11]} Kd5 {[%emt 0:00:35]} 58. Kf3 {[%emt 0:00:01]} Kc5 {[%emt 0:01:00]} 59. Kg2 {[%emt 0:01:59]} Kb4 {[%emt 0:00:33]} 60. Rd3 {[%emt 0:00:31]} Rb1 {[%emt 0:00:56]} 61. h3 {[%emt 0:00:19]} h5 {[%emt 0:00:30]} 62. h4 {[%emt 0:00:40]} Rc1 {[%emt 0:00:29]} 63. g4 {[%emt 0:00:32]} hxg4 {[%emt 0:00:11]} 64. h5 {[%emt 0:00:31]} gxh5 {[%emt 0:00:07]} 65. Kh2 {[%emt 0:00:06]} Rxf1 {[%emt 0:00:22]} 0-1

[Event "September Lviv Tradition 2019"]
[Site "Lviv"]
[Date "2019.09.27"]
[Round "8.2"]
[White "Rydstrom, Tom"]
[Black "Prydun, Andriy"]
[Result "0-1"]
[ECO "C18"]
[WhiteElo "2322"]
[BlackElo "2273"]
[Annotator "NA"]
[PlyCount "86"]
[EventDate "2019.09.23"]
[EventType "tourn"]
[EventCountry "UKR"]
[SourceTitle "playchess.com"]
[Source "ChessBase"]
[SourceQuality "1"]
[TimeControl "5400+30"]

1. e4 {[%emt 0:00:00]} e6 {[%emt 0:00:00]} 2. d4 {[%emt 0:00:00]} d5 {[%emt 0:00:00]} 3. Nc3 {[%emt 0:00:00]} Bb4 {[%emt 0:00:00]} 4. e5 {[%emt 0:00:04]} c5 {[%emt 0:00:03]} 5. a3 {[%emt 0:01:00]} Bxc3+ {[%emt 0:00:07]} 6. bxc3 {[%emt 0:00:04]} Ne7 {[%emt 0:01:25]} 7. Qg4 {[%emt 0:00:26]} O-O {[%emt 0:01:42]} 8. Bd3 {[%emt 0:00:55]} f5 {[%emt 0:04:09]} 9. exf6 {[%emt 0:01:25]} Rxf6 {[%emt 0:00:17]} 10. Bg5 {[%emt 0:00:41]} Rf7 {[%emt 0:00:26]} 11. Qh5 {[%emt 0:01:58]} g6 {[%emt 0:01:52]} 12. Qh4 {[%emt 0:00:13]} Qa5 {[%emt 0:00:22]} 13. Bd2 {[%emt 0:08:18]} c4 {[%emt 0:01:50]} 14. Be2 {[%emt 0:00:01]} Nf5 {[%emt 0:03:03]} 15. Qg5 {[%emt 0:01:56]} Nd6 {[%emt 0:06:59]} 16. Nf3 {[%emt 0:02:08]} Ne4 {[%emt 0:09:02]} 17. Qh6 {[%emt 0:04:00]} Nc6 {[%emt 0:05:16]} 18. h4 {[%emt 0:23:10]} e5 {[%emt 0:18:52]} 19. h5 {[%emt 0:04:13]} Bf5 {[%emt 0:02:26]} 20. Nh4 {[%emt 0:20:22]} Nxd2 {[%emt 0:02:27]} 21. Qxd2 {[%emt 0:04:16]} exd4 {[%emt 0:03:34]} 22. hxg6 {[%emt 0:03:52]} Bxg6 {[%emt 0:01:36]} 23. Nxg6 {[%emt 0:00:16]} hxg6 {[%emt 0:00:10]} 24. Rd1 {[%emt 0:01:03]} Re8 {[%emt 0:00:27]} 25. Qh6 {[%emt 0:02:33]} Qxc3+ {[%emt 0:01:27]} 26. Kf1 {[%emt 0:00:44]} d3 {[%emt 0:04:22]} 27. Qxg6+ {[%emt 0:00:00]} Qg7 {[%emt 0:00:27]} 28. Qxg7+ {[%emt 0:04:44]} Rxg7 {[%emt 0:01:41]} 29. cxd3 {[%emt 0:00:01]} c3 {[%emt 0:00:08]} 30. Bf3 {[%emt 0:03:37]} Rg5 {[%emt 0:03:41]} 31. Rc1 {[%emt 0:07:21]} Nd4 {[%emt 0:05:09]} 32. Bh5 {[%emt 0:03:10]} Nb3 {[%emt 0:04:54]} 33. Bxe8 {[%emt 0:00:54]} Nxc1 {[%emt 0:00:07]} 34. f4 {[%emt 0:01:15]} Rf5 {[%emt 0:00:44]} 35. g3 {[%emt 0:00:14]} Nb3 {[%emt 0:00:49]} 36. Rh2 {[%emt 0:02:14]} Nd4 {[%emt 0:00:12]} 37. Ba4 {[%emt 0:00:25]} b5 {[%emt 0:00:05]} 38. Bd1 {[%emt 0:00:03]} a5 {[%emt 0:00:04]} 39. Ra2 {[%emt 0:00:22]} b4 {[%emt 0:00:46]} 40. axb4 {[%emt 0:00:44]} axb4 {[%emt 0:00:06]} 41. Ra4 {[%emt 0:01:13]} b3 {[%emt 0:00:42]} 42. Ke1 {[%emt 0:00:33]} b2 {[%emt 0:00:41]} 43. Rb4 {[%emt 0:00:14]} c2 {[%emt 0:00:05]} 0-1

[Event "September Lviv Tradition 2019"]
[Site "Lviv"]
[Date "2019.09.27"]
[Round "8.4"]
[White "Vakulenko, Oleksandr"]
[Black "Sevostianov, Pavel"]
[Result "0-1"]
[ECO "A40"]
[WhiteElo "2167"]
[BlackElo "2260"]
[Annotator "NA"]
[PlyCount "68"]
[EventDate "2019.09.23"]
[EventType "tourn"]
[EventCountry "UKR"]
[SourceTitle "playchess.com"]
[Source "ChessBase"]
[SourceQuality "1"]
[TimeControl "5400+30"]

1. d4 {[%emt 0:00:00]} g6 {[%emt 0:01:05]} 2. c4 {[%emt 0:00:46]} Bg7 {[%emt 0:00:14]} 3. Nc3 {[%emt 0:00:14]} c5 {[%emt 0:00:33]} 4. d5 {[%emt 0:00:20]} d6 {[%emt 0:01:00]} 5. e4 {[%emt 0:00:16]} e6 {[%emt 0:00:16]} 6. Bd3 {[%emt 0:06:27]} Ne7 {[%emt 0:00:38]} 7. h4 {[%emt 0:06:24]} exd5 {[%emt 0:03:11]} 8. exd5 {[%emt 0:00:49]} O-O {[%emt 0:07:23]} 9. Nge2 {[%emt 0:09:01]} Nd7 {[%emt 0:00:42]} 10. h5 {[%emt 0:13:52]} Ne5 {[%emt 0:00:29]} 11. h6 {[%emt 0:01:06]} Bh8 {[%emt 0:00:41]} 12. Bg5 {[%emt 0:00:21]} a6 {[%emt 0:04:51]} 13. Ng3 {[%emt 0:05:06]} f6 {[%emt 0:01:57]} 14. Bf4 {[%emt 0:01:48]} f5 {[%emt 0:00:10]} 15. O-O {[%emt 0:06:00]} Bf6 {[%emt 0:01:41]} 16. Qd2 {[%emt 0:03:10]} Nxd3 {[%emt 0:02:23]} 17. Qxd3 {[%emt 0:00:08]} g5 {[%emt 0:00:08]} 18. Bd2 {[%emt 0:01:56]} Qe8 {[%emt 0:04:24]} 19. Rae1 {[%emt 0:09:14]} Bd7 {[%emt 0:00:51]} 20. Qe2 {[%emt 0:01:31]} f4 {[%emt 0:05:13]} 21. Nge4 {[%emt 0:07:59]} Be5 {[%emt 0:01:21]} 22. Nxc5 {[%emt 0:02:26]} f3 {[%emt 0:01:00]} 23. Qe3 {[%emt 0:09:39]} fxg2 {[%emt 0:02:14]} 24. Qxg5+ {[%emt 0:01:11]} Ng6 {[%emt 0:01:52]} 25. Qxg2 {[%emt 0:05:36]} dxc5 {[%emt 0:02:27]} 26. f4 {[%emt 0:01:06]} Bd4+ {[%emt 0:00:19]} 27. Kh1 {[%emt 0:00:11]} Qd8 {[%emt 0:01:06]} 28. Ne4 {[%emt 0:02:20]} Qh4+ {[%emt 0:02:35]} 29. Qh2 {[%emt 0:00:01]} Qg4 {[%emt 0:01:54]} 30. Be3 {[%emt 0:02:49]} Rae8 {[%emt 0:02:59]} 31. Bxd4 {[%emt 0:01:46]} cxd4 {[%emt 0:00:02]} 32. c5 {[%emt 0:01:32]} Bb5 {[%emt 0:01:39]} 33. Rf2 {[%emt 0:00:46]} Qf5 {[%emt 0:01:18]} 34. Qg2 {[%emt 0:00:23]} Bd3 {[%emt 0:00:40]} 0-1

[Event "September Lviv Tradition 2019"]
[Site "Lviv"]
[Date "2019.09.27"]
[Round "8.5"]
[White "Cherniaiev, Tykhon"]
[Black "Siniauski, Artsiom"]
[Result "1/2-1/2"]
[ECO "A05"]
[WhiteElo "2112"]
[BlackElo "2233"]
[Annotator "NA"]
[PlyCount "109"]
[EventDate "2019.09.23"]
[EventType "tourn"]
[EventCountry "UKR"]
[SourceTitle "playchess.com"]
[Source "ChessBase"]
[SourceQuality "1"]
[TimeControl "5400+30"]

1. Nf3 {[%emt 0:00:00]} Nf6 {[%emt 0:00:00]} 2. c4 {[%emt 0:00:33]} b6 {[%emt 0:00:03]} 3. g3 {[%emt 0:00:31]} Bb7 {[%emt 0:00:09]} 4. Bg2 {[%emt 0:00:07]} e6 {[%emt 0:00:27]} 5. O-O {[%emt 0:02:58]} Be7 {[%emt 0:00:28]} 6. b3 {[%emt 0:01:41]} O-O {[%emt 0:00:20]} 7. Bb2 {[%emt 0:01:15]} d5 {[%emt 0:00:44]} 8. Ne5 {[%emt 0:18:46]} Nbd7 {[%emt 0:07:08]} 9. d4 {[%emt 0:04:48]} c5 {[%emt 0:02:42]} 10. e3 {[%emt 0:05:07]} Qc7 {[%emt 0:04:52]} 11. cxd5 {[%emt 0:06:05]} Bxd5 {[%emt 0:08:46]} 12. Bxd5 {[%emt 0:02:44]} exd5 {[%emt 0:00:29]} 13. Nxd7 {[%emt 0:03:23]} Qxd7 {[%emt 0:01:12]} 14. Nc3 {[%emt 0:13:30]} Qf5 {[%emt 0:06:11]} 15. Kg2 {[%emt 0:04:20]} Rac8 {[%emt 0:05:02]} 16. dxc5 {[%emt 0:07:25]} bxc5 {[%emt 0:02:03]} 17. Qf3 {[%emt 0:02:15]} Qe6 {[%emt 0:09:11]} 18. Rfd1 {[%emt 0:02:05]} Rfd8 {[%emt 0:00:39]} 19. Ne2 {[%emt 0:00:42]} Qb6 {[%emt 0:14:13]} 20. Nf4 {[%emt 0:02:15]} d4 {[%emt 0:04:04]} 21. exd4 {[%emt 0:00:26]} cxd4 {[%emt 0:00:11]} 22. Ne2 {[%emt 0:01:00]} Bc5 {[%emt 0:00:30]} 23. Rac1 {[%emt 0:00:29]} Qa6 {[%emt 0:04:56]} 24. Bxd4 {[%emt 0:01:11]} Bxd4 {[%emt 0:00:42]} 25. Rxd4 {[%emt 0:00:17]} Qxa2 {[%emt 0:03:22]} 26. Rxc8 {[%emt 0:00:25]} Rxc8 {[%emt 0:00:08]} 27. Ra4 {[%emt 0:00:09]} Qc2 {[%emt 0:08:25]} 28. Rxa7 {[%emt 0:00:10]} Qe4 {[%emt 0:00:58]} 29. Qxe4 {[%emt 0:00:16]} Nxe4 {[%emt 0:00:03]} 30. Ra4 {[%emt 0:01:31]} f5 {[%emt 0:01:19]} 31. Nd4 {[%emt 0:01:08]} g6 {[%emt 0:00:27]} 32. Ra2 {[%emt 0:04:30]} Rb8 {[%emt 0:03:23]} 33. Rc2 {[%emt 0:01:01]} Kf7 {[%emt 0:04:20]} 34. h3 {[%emt 0:02:58]} Kf6 {[%emt 0:02:04]} 35. h4 {[%emt 0:05:19]} Rb7 {[%emt 0:00:36]} 36. h5 {[%emt 0:01:52]} Ke5 {[%emt 0:01:51]} 37. Nf3+ {[%emt 0:00:32]} Kd5 {[%emt 0:00:13]} 38. hxg6 {[%emt 0:00:23]} hxg6 {[%emt 0:00:05]} 39. Nd2 {[%emt 0:00:30]} Nc5 {[%emt 0:01:22]} 40. Ra2 {[%emt 0:00:41]} Rb6 {[%emt 0:01:15]} 41. Ra5 {[%emt 0:01:07]} Kd4 {[%emt 0:01:57]} 42. Nf3+ {[%emt 0:00:17]} Kd5 {[%emt 0:00:04]} 43. Nh4 {[%emt 0:00:28]} Kd4 {[%emt 0:00:36]} 44. b4 {[%emt 0:02:31]} Nd3 {[%emt 0:02:48]} 45. b5 {[%emt 0:00:52]} Ke4 {[%emt 0:00:09]} 46. Ra6 {[%emt 0:00:47]} Rxb5 {[%emt 0:00:07]} 47. Ra4+ {[%emt 0:00:03]} Rb4 {[%emt 0:00:42]} 48. Rxb4+ {[%emt 0:00:18]} Nxb4 {[%emt 0:00:02]} 49. Nxg6 {[%emt 0:00:02]} Nd5 {[%emt 0:01:38]} 50. f3+ {[%emt 0:01:13]} Kd4 {[%emt 0:00:30]} 51. Kf2 {[%emt 0:00:24]} Nf6 {[%emt 0:00:26]} 52. Ke2 {[%emt 0:00:20]} Nh5 {[%emt 0:00:19]} 53. Kf2 {[%emt 0:00:06]} Nf6 {[%emt 0:00:04]} 54. Kg2 {[%emt 0:00:14]} Nh7 {[%emt 0:00:28]} 55. f4 {[%emt 0:00:53] Ke5} 1/2-1/2

[Event "September Lviv Tradition 2019"]
[Site "Lviv"]
[Date "2019.09.28"]
[Round "9.3"]
[White "Siniauski, Artsiom"]
[Black "Vakulenko, Oleksandr"]
[Result "1/2-1/2"]
[ECO "C70"]
[WhiteElo "2233"]
[BlackElo "2167"]
[Annotator "NA"]
[PlyCount "93"]
[EventDate "2019.09.23"]
[EventType "tourn"]
[EventCountry "UKR"]
[SourceTitle "playchess.com"]
[Source "ChessBase"]
[SourceQuality "1"]
[TimeControl "5400+30"]

1. e4 {[%emt 0:00:00]} e5 {[%emt 0:00:00]} 2. Nf3 {[%emt 0:00:00]} Nc6 {[%emt 0:00:00]} 3. Bb5 {[%emt 0:00:00]} a6 {[%emt 0:00:00]} 4. Ba4 {[%emt 0:00:06]} Nge7 {[%emt 0:00:16]} 5. O-O {[%emt 0:06:21]} g6 {[%emt 0:00:21]} 6. c3 {[%emt 0:10:41]} Bg7 {[%emt 0:00:54]} 7. d4 {[%emt 0:00:07]} exd4 {[%emt 0:00:41]} 8. Nxd4 {[%emt 0:00:13]} O-O {[%emt 0:24:54]} 9. Be3 {[%emt 0:00:44]} Ne5 {[%emt 0:01:37]} 10. Nd2 {[%emt 0:03:51]} d5 {[%emt 0:04:35]} 11. h3 {[%emt 0:09:33]} c5 {[%emt 0:17:21]} 12. N4f3 {[%emt 0:04:59]} Nd3 {[%emt 0:05:15]} 13. Qb1 {[%emt 0:02:50]} dxe4 {[%emt 0:03:10]} 14. Nxe4 {[%emt 0:00:32]} Bf5 {[%emt 0:00:18]} 15. Ng3 {[%emt 0:01:02]} Ne5 {[%emt 0:07:09]} 16. Qd1 {[%emt 0:01:19]} Qxd1 {[%emt 0:07:33]} 17. Bxd1 {[%emt 0:00:31]} Nd3 {[%emt 0:01:04]} 18. Bc2 {[%emt 0:06:21]} c4 {[%emt 0:03:24]} 19. Rab1 {[%emt 0:08:44]} Be6 {[%emt 0:03:01]} 20. Bd4 {[%emt 0:02:22]} Nc6 {[%emt 0:00:56]} 21. Bxg7 {[%emt 0:00:39]} Kxg7 {[%emt 0:00:01]} 22. Ne2 {[%emt 0:00:34]} Bd5 {[%emt 0:03:06]} 23. Nfd4 {[%emt 0:04:56]} Rfe8 {[%emt 0:01:33]} 24. Rfd1 {[%emt 0:02:33]} Rad8 {[%emt 0:02:33]} 25. Rd2 {[%emt 0:05:44]} Nxd4 {[%emt 0:04:06]} 26. Nxd4 {[%emt 0:00:37]} Nf4 {[%emt 0:01:53]} 27. f3 {[%emt 0:01:12]} Re5 {[%emt 0:00:12]} 28. Rbd1 {[%emt 0:03:49]} Rde8 {[%emt 0:00:35]} 29. Kh2 {[%emt 0:02:27]} Kf6 {[%emt 0:00:26]} 30. Kg3 {[%emt 0:02:03]} Ne2+ {[%emt 0:02:19]} 31. Nxe2 {[%emt 0:00:54]} Rxe2 {[%emt 0:00:01]} 32. Ba4 {[%emt 0:00:53]} Bc6 {[%emt 0:03:08]} 33. Bxc6 {[%emt 0:01:18]} bxc6 {[%emt 0:00:01]} 34. Rd6+ {[%emt 0:00:19]} R8e6 {[%emt 0:00:24]} 35. R1d2 {[%emt 0:00:40]} Kf5 {[%emt 0:01:20]} 36. a3 {[%emt 0:00:35]} Rxd6 {[%emt 0:00:29]} 37. Rxe2 {[%emt 0:00:30]} Re6 {[%emt 0:02:23]} 38. Rd2 {[%emt 0:01:02]} Ke5 {[%emt 0:01:16]} 39. Rd4 {[%emt 0:00:42]} c5 {[%emt 0:00:32]} 40. Rxc4 {[%emt 0:00:34]} Kd5 {[%emt 0:00:13]} 41. Rf4 {[%emt 0:01:30]} f5 {[%emt 0:00:47]} 42. Kf2 {[%emt 0:01:10]} c4 {[%emt 0:00:38]} 43. Rd4+ {[%emt 0:03:03]} Kc5 {[%emt 0:00:01]} 44. g3 {[%emt 0:00:56]} h5 {[%emt 0:00:48]} 45. Rd2 {[%emt 0:01:50]} Kb5 {[%emt 0:00:23]} 46. Rd4 {[%emt 0:01:01]} Rc6 {[%emt 0:00:22]} 47. Ke3 {[%emt 0:02:59]} 1/2-1/2

[Event "September Lviv Tradition 2019"]
[Site "Lviv"]
[Date "2019.09.28"]
[Round "9.4"]
[White "Prydun, Andriy"]
[Black "Cherniaiev, Tykhon"]
[Result "1-0"]
[ECO "A26"]
[WhiteElo "2273"]
[BlackElo "2112"]
[Annotator "NA"]
[PlyCount "89"]
[EventDate "2019.09.23"]
[EventType "tourn"]
[EventCountry "UKR"]
[SourceTitle "playchess.com"]
[Source "ChessBase"]
[SourceQuality "1"]
[TimeControl "5400+30"]

1. c4 {[%emt 0:00:00]} e5 {[%emt 0:00:00]} 2. g3 {[%emt 0:00:00]} Nc6 {[%emt 0:02:38]} 3. Bg2 {[%emt 0:01:14]} g6 {[%emt 0:02:52]} 4. Nc3 {[%emt 0:05:26]} Bg7 {[%emt 0:04:08]} 5. d3 {[%emt 0:04:32]} d6 {[%emt 0:02:42]} 6. Rb1 {[%emt 0:05:17]} Be6 {[%emt 0:10:26]} 7. b4 {[%emt 0:06:13]} Qc8 {[%emt 0:19:10]} 8. b5 {[%emt 0:10:17]} Nd8 {[%emt 0:01:52]} 9. Ba3 {[%emt 0:19:55]} Ne7 {[%emt 0:08:47]} 10. c5 {[%emt 0:08:16]} d5 {[%emt 0:06:59]} 11. c6 {[%emt 0:00:16]} bxc6 {[%emt 0:04:26]} 12. Bxe7 {[%emt 0:00:37]} Kxe7 {[%emt 0:00:12]} 13. bxc6 {[%emt 0:00:08]} e4 {[%emt 0:07:00]} 14. Qb3 {[%emt 0:00:32]} f5 {[%emt 0:20:04]} 15. Nxd5+ {[%emt 0:01:53]} Kf7 {[%emt 0:01:16]} 16. Nh3 {[%emt 0:01:00]} h6 {[%emt 0:01:03]} 17. dxe4 {[%emt 0:00:49]} Nxc6 {[%emt 0:01:56]} 18. exf5 {[%emt 0:09:18]} gxf5 {[%emt 0:00:14]} 19. O-O {[%emt 0:00:26]} Nd4 {[%emt 0:00:52]} 20. Qd3 {[%emt 0:01:45]} Rd8 {[%emt 0:01:27]} 21. Nhf4 {[%emt 0:00:36]} c6 {[%emt 0:00:51]} 22. Nxe6 {[%emt 0:06:27]} Qxe6 {[%emt 0:00:06]} 23. Rb7+ {[%emt 0:00:25]} Kg8 {[%emt 0:00:56]} 24. Rxg7+ {[%emt 0:01:27]} Kxg7 {[%emt 0:00:19]} 25. Qxd4+ {[%emt 0:00:06]} Kf7 {[%emt 0:00:33]} 26. Rd1 {[%emt 0:04:46]} Rd6 {[%emt 0:00:25]} 27. Rd3 {[%emt 0:09:52]} Rad8 {[%emt 0:00:49]} 28. Qxa7+ {[%emt 0:00:52]} R8d7 {[%emt 0:00:23]} 29. Qd4 {[%emt 0:01:05]} cxd5 {[%emt 0:00:07]} 30. Re3 {[%emt 0:00:10]} Qf6 {[%emt 0:00:47]} 31. Re5 {[%emt 0:00:20]} Kg7 {[%emt 0:01:07]} 32. Qf4 {[%emt 0:00:33]} Rf7 {[%emt 0:01:00]} 33. Bxd5 {[%emt 0:00:11]} Rf8 {[%emt 0:00:31]} 34. Bf3 {[%emt 0:01:11]} Re6 {[%emt 0:00:25]} 35. Ra5 {[%emt 0:00:35]} Re7 {[%emt 0:00:32]} 36. Kg2 {[%emt 0:00:17]} Rff7 {[%emt 0:00:28]} 37. h4 {[%emt 0:00:13]} Ra7 {[%emt 0:00:18]} 38. Rc5 {[%emt 0:01:02]} Rf8 {[%emt 0:00:45]} 39. Rc6 {[%emt 0:00:14]} Qd8 {[%emt 0:00:32]} 40. Qxh6+ {[%emt 0:00:07]} Kg8 {[%emt 0:00:12]} 41. Rg6+ {[%emt 0:00:06]} Kf7 {[%emt 0:00:05]} 42. Rg7+ {[%emt 0:00:06]} Ke8 {[%emt 0:00:06]} 43. Bc6+ {[%emt 0:00:06]} Rd7 {[%emt 0:00:07]} 44. Qe6+ {[%emt 0:00:05]} Qe7 {[%emt 0:00:06]} 45. Qxe7# {[%emt 0:00:05]} 1-0